bitfinex-derivatives/quotes_BTCF0:USTF0_20250901
["timestamp","ask_amount","ask_price","bid_price","bid_amount"]
[1756706672481,0.27634894,107760.0,107750.0,0.03000042]
[1756706672680,1.12978894,107760.0,107750.0,0.03000042]
[1756706673780,1.13078894,107760.0,107750.0,0.03100042]
[1756706674081,0.85444,107760.0,107750.0,0.03100042]
[1756706674580,0.85444,107760.0,107750.0,0.03000042]
[1756706674877,0.85444,107760.0,107750.0,0.03100042]
[1756706676381,0.001,107760.0,107750.0,0.03100042]
[1756706676580,0.001,107760.0,107750.0,0.37651977]
[1756706676978,0.001,107760.0,107750.0,0.73731977]
[1756706677278,0.001,107760.0,107750.0,0.39180042]
[1756706678580,0.001,107760.0,107750.0,0.73180042]
[1756706678779,0.001,107760.0,107750.0,0.39180042]
[1756706679078,0.001,107760.0,107750.0,0.73731977]
[1756706679582,0.001,107760.0,107750.0,0.39180042]
[1756706680987,0.001,107760.0,107750.0,0.45775023]
[1756706683479,0.001,107760.0,107750.0,0.80326958]
[1756706683680,0.001,107760.0,107750.0,0.45775023]
[1756706684284,0.001,107760.0,107750.0,0.39180042]
[1756706684983,0.001,107760.0,107750.0,0.45809164]
[1756706685182,0.001,107760.0,107750.0,0.39180042]
[1756706686786,0.001,107760.0,107750.0,0.73731977]
[1756706687385,0.001,107760.0,107750.0,0.47483984]
[1756706688985,0.001,107760.0,107750.0,0.48483984]
[1756706689885,0.001,107760.0,107750.0,0.47483984]
[1756706690682,0.59651935,107760.0,107750.0,0.11403984]
[1756706690879,0.59651935,107760.0,107750.0,0.09731622]
[1756706691186,0.251,107760.0,107750.0,0.03100042]
[1756706694086,0.88821717,107760.0,107750.0,0.07656128]
[1756706694383,1.16463434,107760.0,107750.0,0.07656128]
[1756706694685,1.16463434,107760.0,107750.0,0.01024548]
[1756706695080,1.20450387,107760.0,107750.0,0.01024548]
[1756706695278,1.18350159,107760.0,107750.0,0.001]
[1756706696686,1.20448685,107760.0,107750.0,0.001]
[1756706696882,1.20448685,107760.0,107750.0,0.00061639]
[1756706697585,2.05912685,107760.0,107750.0,0.00061639]
[1756706698081,2.05812685,107760.0,107730.0,0.09647137]
[1756706698381,0.63721717,107740.0,107730.0,0.03015557]
[1756706699986,0.3608,107740.0,107730.0,0.03015557]
[1756706700286,0.63721717,107740.0,107730.0,0.00935667]
[1756706700479,0.63721717,107740.0,107720.0,0.0663158]
[1756706700480,0.6561767,107740.0,107720.0,0.0663158]
[1756706700780,1.13069717,107730.0,107720.0,0.0663158]
[1756706700988,0.85424,107730.0,107720.0,0.0663158]
[1756706702191,0.6561767,107740.0,107720.0,0.1363158]
[1756706702381,0.6561767,107740.0,107720.0,0.4308]
[1756706702581,0.82136,107730.0,107720.0,0.77753297]
[1756706702788,0.6561767,107740.0,107720.0,0.77753297]
[1756706702990,1.5102567,107740.0,107720.0,0.77753297]
[1756706703188,1.5101767,107740.0,107720.0,0.77753297]
[1756706703384,1.5101767,107740.0,107720.0,0.76700313]
[1756706704291,0.6561767,107740.0,107720.0,0.42427016]
[1756706704689,1.4790167,107740.0,107720.0,0.70068733]
[1756706705090,1.4790167,107740.0,107720.0,0.69868733]
[1756706705393,1.4790167,107740.0,107720.0,0.70068733]
[1756706705593,1.4790167,107740.0,107720.0,0.69868733]
[1756706705791,1.4790167,107740.0,107720.0,0.70068733]
[1756706706188,0.6561767,107740.0,107720.0,0.70068733]
[1756706706392,1.5102167,107740.0,107720.0,0.70068733]
[1756706707194,1.5102167,107740.0,107720.0,0.42427016]
[1756706707585,1.23379953,107740.0,107720.0,0.06347016]
[1756706707895,0.6561767,107740.0,107720.0,0.34452733]
[1756706708192,0.8548,107730.0,107720.0,0.70532733]
[1756706708992,1.49201717,107730.0,107720.0,0.06811016]
[1756706709687,1.76843434,107730.0,107720.0,0.00464]
[1756706709886,1.76843434,107730.0,107720.0,0.00864]
[1756706710192,2.01843434,107730.0,107720.0,0.00864]
[1756706710890,2.01943434,107730.0,107720.0,0.00464]
[1756706711098,1.16463434,107730.0,107720.0,0.00464]
[1756706711292,2.01991434,107730.0,107720.0,0.00464]
[1756706712094,1.16463434,107730.0,107720.0,0.00464]
[1756706712291,1.2403938,107730.0,107720.0,0.00464]
[1756706712488,2.0955538,107730.0,107720.0,0.00464]
[1756706712684,0.43755946,107730.0,107720.0,0.00464]
[1756706712888,1.56813663,107730.0,107720.0,0.00464]
[1756706713095,1.57213663,107730.0,107720.0,0.00464]
[1756706713294,0.71697663,107730.0,107720.0,0.00464]
[1756706713590,0.44055946,107730.0,107720.0,0.00464]
[1756706713797,0.85948,107730.0,107720.0,0.00464]
[1756706713986,0.004,107730.0,107720.0,0.60105717]
[1756706714193,0.85948,107730.0,107720.0,0.99185717]
[1756706714494,0.85948,107730.0,107720.0,0.28105717]
[1756706714885,0.85948,107730.0,107720.0,0.64185717]
[1756706715388,0.85948,107730.0,107720.0,0.95185717]
[1756706715595,0.85948,107730.0,107720.0,0.96185717]
[1756706715890,0.004,107730.0,107720.0,1.21185717]
[1756706716097,0.85944,107730.0,107720.0,1.21185717]
[1756706716396,0.85944,107730.0,107720.0,0.93544]
[1756706716596,0.85944,107730.0,107720.0,1.21185717]
[1756706717098,0.85944,107730.0,107720.0,0.93544]
[1756706717500,0.85944,107730.0,107720.0,1.21185717]
[1756706718495,0.85944,107730.0,107720.0,0.93544]
[1756706719000,0.85944,107730.0,107720.0,1.21185717]
[1756706719896,0.004,107730.0,107720.0,1.21185717]
[1756706720099,0.861,107730.0,107720.0,1.21185717]
[1756706720698,0.861,107730.0,107720.0,0.93544]
[1756706720898,0.861,107730.0,107720.0,1.21185717]
[1756706721093,0.86084,107730.0,107720.0,1.27817297]
[1756706721792,0.86084,107730.0,107720.0,1.0017558]
[1756706722198,0.86084,107730.0,107720.0,1.27817297]
[1756706722594,0.004,107730.0,107720.0,1.27817297]
[1756706722799,0.86048,107730.0,107720.0,1.27817297]
[1756706723496,0.004,107730.0,107720.0,1.27817297]
[1756706723798,0.86048,107730.0,107720.0,1.27817297]
[1756706725603,0.004,107730.0,107720.0,1.0017558]
[1756706725903,0.8604,107730.0,107720.0,1.0017558]
[1756706728899,0.8604,107730.0,107720.0,0.7917558]
[1756706729199,0.8604,107730.0,107720.0,1.16817297]
[1756706729405,0.004,107730.0,107720.0,1.16817297]
[1756706729706,0.86092,107730.0,107720.0,1.16817297]
[1756706730902,0.004,107730.0,107720.0,1.16817297]
[1756706731108,0.86108,107730.0,107720.0,1.16817297]
[1756706731309,0.004,107730.0,107720.0,1.16817297]
[1756706731607,0.86084,107730.0,107720.0,1.16817297]
[1756706732107,0.86076,107730.0,107720.0,1.16817297]
[1756706732297,0.86064,107730.0,107720.0,1.16817297]
[1756706732502,0.8606,107730.0,107720.0,1.16817297]
[1756706733807,0.004,107730.0,107720.0,1.16817297]
[1756706734108,0.86048,107730.0,107720.0,1.16817297]
[1756706734503,0.86048,107730.0,107720.0,0.8917558]
[1756706734708,0.86048,107730.0,107720.0,1.16817297]
[1756706735108,0.004,107730.0,107720.0,1.16817297]
[1756706735705,0.004,107730.0,107720.0,0.8917558]
[1756706735911,0.004,107730.0,107720.0,1.16817297]
[1756706736913,0.004,107730.0,107720.0,1.01099887]
[1756706737103,0.004,107730.0,107720.0,0.94468307]
[1756706737308,0.004,107730.0,107720.0,0.9182659]
[1756706737508,0.004,107730.0,107720.0,1.55413966]
[1756706738213,0.003,107730.0,107720.0,1.55413966]
[1756706738707,0.01886725,107760.0,107740.0,0.0928087]
[1756706738913,0.01886725,107760.0,107750.0,0.27641717]
[1756706739310,0.01886725,107760.0,107750.0,0.65641717]
[1756706739607,0.01886725,107760.0,107750.0,0.72275186]
[1756706739807,0.01886725,107760.0,107750.0,0.70355186]
[1756706740215,0.01886725,107760.0,107750.0,0.70819186]
[1756706740713,0.01886725,107760.0,107750.0,0.43177469]
[1756706740913,0.01886725,107760.0,107750.0,0.70819186]
[1756706741514,0.02086725,107760.0,107750.0,0.70819186]
[1756706742012,0.02086725,107760.0,107750.0,0.70919186]
[1756706742316,0.01886725,107760.0,107750.0,0.70919186]
[1756706742516,0.01986725,107760.0,107750.0,0.70919186]
[1756706743309,0.01986725,107760.0,107750.0,0.78247269]
[1756706743810,0.01986725,107760.0,107750.0,0.70919186]
[1756706744014,0.01986725,107760.0,107750.0,0.43277469]
[1756706744212,0.01986725,107760.0,107750.0,0.80199206]
[1756706744417,0.01986725,107760.0,107750.0,0.77919186]
[1756706744914,0.01986725,107760.0,107750.0,0.43277469]
[1756706745114,0.01986725,107760.0,107750.0,0.70919186]
[1756706746417,0.02086725,107760.0,107750.0,0.70819186]
[1756706747916,0.02086725,107760.0,107750.0,0.43177469]
[1756706748119,0.02086725,107760.0,107750.0,0.70819186]
[1756706748718,0.02086725,107760.0,107750.0,0.78386303]
[1756706749914,0.02086725,107760.0,107750.0,1.18666313]
[1756706751622,0.002,107760.0,107750.0,1.7130803]
[1756706751923,0.002,107760.0,107750.0,1.7503013]
[1756706752116,0.002,107760.0,107750.0,1.47388413]
[1756706753118,0.001,107760.0,107750.0,1.47388413]
[1756706753320,0.87679022,107790.0,107750.0,2.33244413]
[1756706753619,1.15320739,107790.0,107760.0,0.63721717]
[1756706753823,1.15320739,107790.0,107760.0,0.79613795]
[1756706754523,1.07729717,107790.0,107760.0,0.73000737]
[1756706754724,1.07729717,107790.0,107760.0,0.73463737]
[1756706754922,1.07829717,107790.0,107760.0,0.73463737]
[1756706755514,1.07829717,107790.0,107760.0,0.7440913]
[1756706756129,1.07829717,107790.0,107760.0,1.1140913]
[1756706757122,1.07929717,107790.0,107760.0,1.1140913]
[1756706757726,0.80288,107790.0,107760.0,1.1140913]
[1756706758026,1.07929717,107790.0,107760.0,1.0213011]
[1756706758625,0.27641717,107780.0,107760.0,0.6513011]
[1756706759325,0.80288,107790.0,107770.0,0.27641717]
[1756706759515,1.07929717,107790.0,107760.0,0.46767433]
[1756706759716,1.07929717,107790.0,107760.0,1.0840915]
[1756706759916,0.001,107780.0,107760.0,1.0840915]
[1756706760117,0.001,107780.0,107760.0,0.9913011]
[1756706760320,0.27741717,107780.0,107760.0,0.6513011]
[1756706760627,0.27841717,107780.0,107760.0,0.6513011]
[1756706760927,0.001,107780.0,107760.0,1.064092]
[1756706761526,0.001,107780.0,107770.0,0.27641717]
[1756706761827,0.001,107780.0,107760.0,0.46767483]
[1756706762023,0.001,107780.0,107770.0,0.27641717]
[1756706763019,0.002,107780.0,107760.0,0.46767483]
[1756706763217,0.002,107780.0,107770.0,0.27641717]
[1756706763425,0.63921717,107780.0,107760.0,0.01408393]
[1756706763730,1.13557717,107770.0,107760.0,0.01408393]
[1756706765025,0.85916,107770.0,107760.0,0.01408393]
[1756706765528,1.13557717,107770.0,107760.0,0.01408393]
[1756706765828,0.85916,107770.0,107760.0,0.01408393]
[1756706766822,1.13657717,107770.0,107760.0,0.01408393]
[1756706767426,1.49837717,107770.0,107760.0,0.01408393]
[1756706768830,1.13757717,107770.0,107760.0,0.01408393]
[1756706769232,1.49837717,107770.0,107760.0,0.01408393]
[1756706769726,1.13757717,107770.0,107760.0,0.01408393]
[1756706769928,1.49837717,107770.0,107760.0,0.01408393]
[1756706770330,1.22196,107770.0,107760.0,0.01408393]
[1756706770630,1.49837717,107770.0,107760.0,0.01408393]
[1756706772434,1.51940922,107770.0,107760.0,0.01408393]
[1756706772636,1.53795129,107770.0,107760.0,0.01408393]
[1756706773434,1.76691924,107770.0,107760.0,0.01408393]
[1756706773937,1.78794954,107770.0,107760.0,0.01408393]
[1756706774333,1.76691924,107770.0,107760.0,0.00463]
[1756706774538,1.78794919,107770.0,107760.0,0.00463]
[1756706777438,1.79732418,107770.0,107760.0,0.00463]
[1756706778837,2.07374135,107770.0,107760.0,0.00463]
[1756706779035,2.08374135,107770.0,107760.0,0.00463]
[1756706779342,2.43374135,107770.0,107760.0,0.00463]
[1756706779838,1.57458135,107770.0,107760.0,0.00463]
[1756706780042,2.43258135,107770.0,107760.0,0.00463]
[1756706782546,2.43218135,107770.0,107760.0,0.00463]
[1756706783047,2.15576418,107770.0,107760.0,0.00463]
[1756706783743,1.89626919,107770.0,107760.0,0.00463]
[1756706783944,1.89606919,107770.0,107760.0,0.00463]
[1756706785946,1.87503924,107770.0,107760.0,0.00463]
[1756706786553,1.01775924,107770.0,107760.0,0.00463]
[1756706786750,1.89577432,107770.0,107760.0,0.00463]
[1756706787355,1.89577591,107770.0,107760.0,0.00463]
[1756706787554,1.03877591,107770.0,107760.0,0.00463]
[1756706787751,1.87451924,107770.0,107760.0,0.00463]
[1756706788356,1.59810207,107770.0,107760.0,0.00463]
[1756706788656,0.38134207,107770.0,107760.0,0.25463]
[1756706788858,0.02054207,107770.0,107760.0,0.53104717]
[1756706789257,0.87750207,107770.0,107760.0,0.53104717]
[1756706789658,0.02054207,107770.0,107760.0,0.86104717]
[1756706789854,0.87742207,107770.0,107760.0,0.89184717]
[1756706790456,0.87746207,107770.0,107760.0,1.25184717]
[1756706790657,0.87746207,107770.0,107760.0,0.61543]
[1756706790859,0.87738207,107770.0,107760.0,0.89184717]
[1756706791058,0.87746207,107770.0,107760.0,0.89184717]
[1756706791564,0.02054207,107770.0,107760.0,0.89184717]
[1756706791863,0.87754207,107770.0,107760.0,0.89184717]
[1756706793263,0.87750207,107770.0,107760.0,0.89184717]
[1756706794766,0.02054207,107770.0,107760.0,0.89184717]
[1756706795065,0.87698207,107770.0,107760.0,1.24184717]
[1756706796069,0.87698207,107770.0,107760.0,0.89184717]
[1756706796266,0.87698207,107770.0,107760.0,1.24184717]
[1756706796467,0.87698207,107770.0,107760.0,0.89184717]
[1756706796669,0.87698207,107770.0,107760.0,1.26184717]
[1756706797068,0.02054207,107770.0,107760.0,1.26184717]
[1756706797269,0.87670207,107770.0,107760.0,1.33797775]
[1756706797675,0.01997942,107770.0,107760.0,1.06156058]
[1756706797870,0.01997942,107770.0,107760.0,1.33797775]
[1756706800573,0.01997942,107770.0,107760.0,1.06156058]
[1756706800875,0.01997942,107770.0,107760.0,1.33797775]
[1756706807078,0.01997942,107770.0,107760.0,1.08797775]
[1756706807580,0.01997942,107770.0,107760.0,1.94465775]
[1756706809376,0.01997942,107770.0,107760.0,1.08797775]
[1756706809577,0.01954207,107770.0,107760.0,1.94437775]
[1756706809780,0.01954207,107770.0,107760.0,1.08797775]
[1756706810780,0.01954207,107770.0,107760.0,0.78797775]
[1756706811081,0.54595924,107770.0,107760.0,0.00463]
[1756706811282,0.90675924,107770.0,107760.0,0.00463]
[1756706812870,0.63034207,107770.0,107760.0,0.00463]
[1756706813082,0.90675924,107770.0,107760.0,0.00463]
[1756706813284,0.90675924,107770.0,107760.0,0.07463]
[1756706816280,0.90675924,107770.0,107760.0,0.00463]
[1756706816681,1.20423062,107770.0,107760.0,0.00463]
[1756706816876,1.51423062,107770.0,107760.0,0.00463]
[1756706818173,1.52344323,107770.0,107760.0,0.00463]
[1756706819184,1.27344323,107770.0,107760.0,0.00463]
[1756706819984,1.83920323,107770.0,107760.0,0.00463]
[1756706820486,0.98344323,107770.0,107760.0,0.00463]
[1756706820785,1.83900323,107770.0,107760.0,0.00463]
[1756706820984,2.17900323,107770.0,107760.0,0.00463]
[1756706822787,1.32344323,107770.0,107760.0,0.00463]
[1756706823085,2.15888323,107770.0,107760.0,0.00463]
[1756706826983,1.30344323,107770.0,107760.0,0.00463]
[1756706827482,1.90892323,107770.0,107760.0,0.00463]
[1756706827680,1.30344323,107770.0,107760.0,0.00463]
[1756706827989,1.81924323,107770.0,107760.0,0.00463]
[1756706828179,2.19924323,107770.0,107760.0,0.00463]
[1756706830288,1.93916323,107770.0,107760.0,0.00463]
[1756706830489,2.13916323,107770.0,107760.0,0.00463]
[1756706831291,1.58632889,107770.0,107760.0,0.00463]
[1756706831487,2.13916323,107770.0,107760.0,0.00463]
[1756706831688,2.38916323,107770.0,107730.0,0.02981427]
[1756706831884,0.63721717,107740.0,107710.0,0.08677945]
[1756706832084,0.27641717,107720.0,107710.0,0.78667502]
[1756706832283,1.49361717,107730.0,107710.0,0.78667502]
[1756706832692,0.27641717,107720.0,107710.0,0.35974444]
[1756706832890,0.63721717,107720.0,107710.0,0.35974444]
[1756706833193,0.63721717,107720.0,107710.0,0.09674444]
[1756706833383,0.63721717,107720.0,107710.0,0.01609557]
[1756706833691,0.71313959,107720.0,107710.0,0.007]
[1756706833996,1.57053959,107720.0,107710.0,0.007]
[1756706834492,1.57053959,107720.0,107710.0,0.012]
[1756706834793,1.57061959,107720.0,107710.0,0.012]
[1756706835487,1.57061959,107720.0,107710.0,0.007]
[1756706836093,1.57049959,107720.0,107710.0,0.001]
[1756706836796,1.57049959,107720.0,107690.0,0.00947802]
[1756706836994,0.27641717,107700.0,107690.0,0.38]
[1756706837195,1.13449717,107700.0,107690.0,0.38]
[1756706838096,0.85808,107700.0,107690.0,0.381]
[1756706838299,1.13449717,107700.0,107690.0,0.381]
[1756706839801,1.13449717,107700.0,107690.0,0.39207746]
[1756706840605,0.85808,107700.0,107690.0,0.91849463]
[1756706841703,0.85808,107700.0,107690.0,0.64207746]
[1756706841896,0.85808,107700.0,107690.0,0.91849463]
[1756706842409,0.85824,107700.0,107690.0,1.27929463]
[1756706842605,0.85824,107710.0,107690.0,1.27929463]
[1756706842796,0.85824,107710.0,107700.0,0.3608]
[1756706843703,0.71313959,107720.0,107700.0,0.3608]
[1756706843898,0.85812,107710.0,107700.0,0.3608]
[1756706844099,0.85812,107710.0,107700.0,0.3618]
[1756706844906,0.85812,107710.0,107700.0,0.001]
[1756706845111,1.21892,107710.0,107700.0,0.001]
[1756706846509,0.3608,107710.0,107700.0,0.001]
[1756706846808,0.85752,107710.0,107700.0,0.001]
[1756706847307,1.13393717,107710.0,107700.0,0.001]
[1756706854709,0.85752,107710.0,107700.0,0.001]
[1756706854914,1.13393717,107710.0,107700.0,0.001]
[1756706858405,1.49473717,107710.0,107700.0,0.001]
[1756706859216,1.74473717,107710.0,107700.0,0.001]
[1756706860506,1.76581624,107710.0,107700.0,0.001]
[1756706861312,2.04223341,107710.0,107700.0,0.001]
[1756706861503,1.76581624,107710.0,107700.0,0.001]
[1756706864313,2.04223341,107710.0,107700.0,0.001]
[1756706864514,1.76581624,107710.0,107700.0,0.001]
[1756706867118,2.04223341,107710.0,107700.0,0.001]
[1756706868420,2.05159358,107710.0,107700.0,0.001]
[1756706872316,0.94407358,107710.0,107700.0,0.001]
[1756706872706,1.79967358,107710.0,107700.0,0.001]
[1756706873916,1.79951358,107710.0,107700.0,0.001]
[1756706875421,1.79971358,107710.0,107700.0,0.001]
[1756706875817,0.93471341,107710.0,107700.0,0.001]
[1756706876218,1.79019341,107710.0,107700.0,0.001]
[1756706876821,1.79011341,107710.0,107700.0,0.001]
[1756706877016,1.79003341,107710.0,107700.0,0.001]
[1756706877321,1.79910999,107710.0,107700.0,0.001]
[1756706877712,0.94382999,107710.0,107700.0,0.001]
[1756706877918,0.38187907,107710.0,107700.0,0.001]
[1756706878120,1.78987341,107710.0,107700.0,0.001]
[1756706880222,0.93471341,107710.0,107700.0,0.001]
[1756706880422,1.51437624,107710.0,107700.0,0.251]
[1756706880615,0.65829624,107710.0,107700.0,0.251]
[1756706880811,1.49353717,107710.0,107700.0,0.251]
[1756706881118,2.67493959,107720.0,107700.0,0.251]
[1756706881314,1.13265717,107710.0,107700.0,0.251]
[1756706881511,1.49345717,107710.0,107700.0,0.251]
[1756706881727,1.49345717,107710.0,107700.0,0.001]
[1756706882230,1.13265717,107710.0,107700.0,0.001]
[1756706883926,1.13329717,107710.0,107690.0,0.71247916]
[1756706884223,1.13329717,107710.0,107700.0,0.001]
[1756706885016,0.85688,107710.0,107700.0,0.001]
[1756706885216,1.13329717,107710.0,107700.0,0.001]
[1756706889729,1.49409717,107710.0,107700.0,0.001]
[1756706889927,1.13265717,107710.0,107700.0,0.001]
[1756706890231,1.49345717,107710.0,107700.0,0.001]
[1756706892930,1.21704,107710.0,107700.0,0.001]
[1756706893137,1.49345717,107710.0,107700.0,0.001]
[1756706894830,1.51453204,107710.0,107700.0,0.001]
[1756706896423,1.51453216,107710.0,107700.0,0.001]
[1756706898530,2.04094933,107710.0,107700.0,0.001]
[1756706898730,2.01987434,107710.0,107700.0,0.001]
[1756706898930,2.0409492,107710.0,107700.0,0.001]
[1756706901340,2.05010221,107710.0,107700.0,0.001]
[1756706903143,2.05010221,107710.0,107670.0,0.06613058]
[1756706903444,0.63721717,107680.0,107670.0,0.39613058]
[1756706903639,1.49401717,107680.0,107670.0,0.39613058]
[1756706905035,1.51267038,107680.0,107670.0,0.39613058]
[1756706905349,1.51267038,107680.0,107670.0,0.33922494]
[1756706905644,0.65587038,107680.0,107670.0,0.34822494]
[1756706905839,0.37945321,107680.0,107670.0,0.34822494]
[1756706906041,1.51223038,107680.0,107670.0,0.34822494]
[1756706906238,1.51223038,107680.0,107670.0,0.34322494]
[1756706906452,0.65587038,107680.0,107670.0,0.34822494]
[1756706906641,1.51219038,107680.0,107670.0,0.34822494]
[1756706907141,0.65587038,107680.0,107670.0,0.34822494]
[1756706907346,1.51219038,107680.0,107670.0,0.34822494]
[1756706907951,0.37945321,107680.0,107670.0,0.34822494]
[1756706908249,0.65587038,107680.0,107670.0,0.34822494]
[1756706908644,1.51223038,107680.0,107670.0,0.34822494]
[1756706909347,0.65587038,107680.0,107670.0,0.34822494]
[1756706909645,1.23565321,107680.0,107670.0,0.87464211]
[1756706910847,0.87485321,107680.0,107670.0,0.87464211]
[1756706911244,0.87485321,107680.0,107670.0,0.59822494]
[1756706911445,1.15127038,107680.0,107670.0,0.66435552]
[1756706912045,0.01865321,107680.0,107670.0,0.87464211]
[1756706912246,0.87505321,107680.0,107670.0,0.87464211]
[1756706912938,0.01865321,107680.0,107670.0,0.94077269]
[1756706913244,0.01865321,107680.0,107670.0,1.30157269]
[1756706913947,0.01865321,107680.0,107670.0,1.57798986]
[1756706914244,0.01865321,107680.0,107670.0,2.46120788]
[1756706914449,0.01865321,107680.0,107670.0,2.54412625]
[1756706914845,0.01865321,107680.0,107670.0,2.46120788]
[1756706915249,0.01869758,107700.0,107670.0,1.72174581]
[1756706915549,0.29511475,107700.0,107690.0,0.06667857]
[1756706915748,0.65591475,107700.0,107690.0,0.06667857]
[1756706915952,0.01869758,107700.0,107690.0,0.06667857]
[1756706916150,0.29511475,107700.0,107690.0,0.06667857]
[1756706916548,0.01869758,107700.0,107690.0,0.06667857]
[1756706916749,0.37949758,107700.0,107690.0,0.06667857]
[1756706917352,0.29511475,107700.0,107690.0,0.06667857]
[1756706918152,0.01869758,107700.0,107690.0,0.06667857]
[1756706918952,0.01869758,107700.0,107690.0,0.06767857]
[1756706920254,0.01869758,107700.0,107690.0,0.06967857]
[1756706922656,0.90591475,107700.0,107690.0,0.003]
[1756706925059,1.18233192,107700.0,107690.0,0.003]
[1756706927660,2.03909192,107700.0,107690.0,0.003]
[1756706928561,1.18233192,107700.0,107690.0,0.003]
[1756706928757,2.03889192,107700.0,107690.0,0.003]
[1756706928959,2.39969192,107700.0,107690.0,0.003]
[1756706929159,2.4207525,107700.0,107660.0,0.15002678]
[1756706929354,1.27443434,107670.0,107660.0,0.06667857]
[1756706929559,1.27443434,107670.0,107660.0,0.00464]
[1756706929560,2.13115434,107670.0,107660.0,0.00464]
[1756706930562,1.27443434,107670.0,107660.0,0.00464]
[1756706930864,1.85477717,107670.0,107660.0,0.00464]
[1756706932266,2.13415434,107670.0,107660.0,0.00464]
[1756706932566,1.86173717,107670.0,107660.0,0.00464]
[1756706932762,1.86165717,107670.0,107660.0,0.00464]
[1756706932956,1.86157717,107670.0,107660.0,0.00464]
[1756706935268,1.00501717,107670.0,107660.0,0.00464]
[1756706935469,1.86173717,107670.0,107660.0,0.00464]
[1756706936167,1.00501717,107670.0,107660.0,0.00464]
[1756706936367,1.86153717,107670.0,107660.0,0.00464]
[1756706936767,1.00501717,107670.0,107660.0,0.00464]
[1756706936967,1.86153717,107670.0,107660.0,0.00464]
[1756706937672,1.86189717,107670.0,107660.0,0.00464]
[1756706938271,1.58548,107670.0,107660.0,0.00464]
[1756706938472,1.86189717,107670.0,107660.0,0.00464]
[1756706939866,1.00501717,107670.0,107660.0,0.00464]
[1756706940075,1.86149717,107670.0,107660.0,0.00464]
[1756706940474,1.86149717,107670.0,107660.0,0.89185717]
[1756706940475,0.007,107670.0,107660.0,0.89185717]
[1756706940674,0.86348,107670.0,107660.0,0.61544]
[1756706940876,0.8634,107670.0,107660.0,0.89185717]
[1756706942374,0.8638,107670.0,107660.0,0.89185717]
[1756706942767,0.007,107670.0,107660.0,1.35473427]
[1756706943072,0.007,107670.0,107660.0,1.40182721]
[1756706943668,0.01887765,107680.0,107660.0,1.49470431]
[1756706943865,0.01887765,107680.0,107670.0,0.73008557]
[1756706944069,0.01887765,107680.0,107670.0,1.29008557]
[1756706944269,0.01887765,107680.0,107670.0,0.6108]
[1756706944468,0.01887765,107680.0,107670.0,0.3608]
[1756706945175,0.02187765,107680.0,107670.0,0.3608]
[1756706945778,0.02187765,107680.0,107670.0,0.63721717]
[1756706945969,0.02187765,107680.0,107670.0,1.01721717]
[1756706946175,0.02287765,107680.0,107670.0,1.01721717]
[1756706946474,0.02287765,107680.0,107670.0,0.70389574]
[1756706946475,0.02687765,107680.0,107670.0,0.70389574]
[1756706950775,0.02687765,107680.0,107670.0,0.70853574]
[1756706952284,0.02687765,107680.0,107670.0,0.80140404]
[1756706952471,0.02687765,107680.0,107670.0,1.33853574]
[1756706954380,0.02687765,107680.0,107670.0,2.19497574]
[1756706955280,0.02687765,107680.0,107670.0,1.91855857]
[1756706955484,0.02687765,107680.0,107670.0,2.19497574]
[1756706955682,0.008,107680.0,107670.0,2.19497574]
[1756706955882,0.008,107680.0,107670.0,2.49758304]
[1756706956081,0.008,107680.0,107670.0,2.58093125]
[1756706956985,0.01869758,107700.0,107690.0,0.0928514]
[1756706957178,0.01869758,107700.0,107690.0,2.32373797]
[1756706957374,0.01869758,107700.0,107690.0,2.32357797]
[1756706957773,0.01869758,107700.0,107690.0,2.57357797]
[1756706958181,0.01869758,107700.0,107690.0,1.71745797]
[1756706958382,0.01869758,107700.0,107690.0,2.57365797]
[1756706959577,0.01869758,107700.0,107690.0,1.71745797]
[1756706959781,0.01869758,107700.0,107690.0,2.6474139]
[1756706959988,0.02469758,107700.0,107690.0,2.6474139]
[1756706960289,0.02469758,107700.0,107690.0,2.85724167]
[1756706960482,0.02469758,107700.0,107690.0,2.92374674]
[1756706960678,0.02169758,107700.0,107690.0,2.00120167]
[1756706960875,0.70713717,107740.0,107700.0,0.0928348]
[1756706961084,0.70713717,107740.0,107720.0,0.27641717]
[1756706961085,0.71713717,107740.0,107720.0,0.27641717]
[1756706961284,0.71713717,107740.0,107720.0,0.3608]
[1756706961585,0.70713717,107740.0,107720.0,0.3608]
[1756706961887,0.70713717,107740.0,107720.0,0.37026455]
[1756706962582,1.49293717,107740.0,107720.0,0.64668172]
[1756706963086,1.49365717,107740.0,107720.0,0.64668172]
[1756706963288,1.21724,107740.0,107720.0,0.64668172]
[1756706963589,0.85844,107740.0,107730.0,0.27641717]
[1756706963887,0.003,107740.0,107730.0,0.73003407]
[1756706964082,0.005,107740.0,107730.0,0.73003407]
[1756706964278,0.008,107740.0,107730.0,0.73003407]
[1756706964484,0.008,107740.0,107730.0,0.63721717]
[1756706967088,0.008,107740.0,107730.0,0.64185717]
[1756706969488,0.008,107740.0,107730.0,0.00464]
[1756706969693,0.89521717,107740.0,107730.0,0.00464]
[1756706969992,1.75141717,107740.0,107730.0,0.00464]
[1756706972596,1.475,107740.0,107730.0,0.00464]
[1756706972798,1.75141717,107740.0,107730.0,0.00464]
[1756706974299,0.89521717,107740.0,107730.0,0.00464]
[1756706974498,1.75105717,107740.0,107730.0,0.00464]
[1756706975995,1.47464,107740.0,107730.0,0.00464]
[1756706976193,1.75105717,107740.0,107730.0,0.00464]
[1756706977291,1.50105717,107740.0,107730.0,0.00464]
[1756706977596,1.75105717,107740.0,107730.0,0.00464]
[1756706978797,0.89521717,107740.0,107730.0,0.00464]
[1756706978995,1.75109717,107740.0,107730.0,0.00464]
[1756706982398,2.11109717,107740.0,107730.0,0.00464]
[1756706984101,1.25521717,107740.0,107730.0,0.00464]
[1756706984300,1.88166438,107740.0,107730.0,0.00464]
[1756706984499,1.22408,107740.0,107730.0,0.53105717]
[1756706984802,0.008,107740.0,107730.0,1.27029104]
[1756706985005,0.008,107740.0,107730.0,1.69759421]
[1756706985205,0.008,107740.0,107730.0,1.05117704]
[1756706985505,0.008,107740.0,107730.0,1.70759421]
[1756706985905,0.008,107740.0,107730.0,1.05117704]
[1756706986505,0.008,107740.0,107730.0,1.38117704]
[1756706986805,0.005,107740.0,107730.0,1.38117704]
[1756706987406,0.005,107740.0,107730.0,1.36117704]
[1756706987606,0.003,107740.0,107730.0,2.21677704]